[Event "Titled Tuesday Blitz February 14 Early 2023"]
[White "Smietanska, Wiktoria"]
[Black "Vagman, Roy"]
[WhiteFideId "21869359"]
[BlackFideId "2828995"]
[WhiteElo "1936"]
[BlackElo "2273"]
[Result "1-0"]
[Round "04"]
[TimeControl "180+2"]
[Date "2023.02.15"]
[WhiteClock "0:00:18"]
[BlackClock "0:00:02"]

1. c4 {[%clk 0:02:55]}  g6 {[%clk 0:03:00]} 2. Nc3 {[%clk 0:02:55]}  Bg7 {[%clk 0:03:01]} 3. g3 {[%clk 0:02:51]}  Nf6 {[%clk 0:03:02]} 4. Bg2 {[%clk 0:02:50]}  O-O {[%clk 0:03:03]} 5. e4 {[%clk 0:02:50]}  d6 {[%clk 0:03:00]} 6. Nge2 {[%clk 0:02:50]}  c5 {[%clk 0:02:53]} 7. O-O {[%clk 0:02:47]}  Nc6 {[%clk 0:02:51]} 8. d3 {[%clk 0:02:47]}  Rb8 {[%clk 0:02:47]} 9. h3 {[%clk 0:02:44]}  a6 {[%clk 0:02:47]} 10. a4 {[%clk 0:02:44]}  Nb4 {[%clk 0:02:45]} 11. Be3 {[%clk 0:02:43]}  Qa5 {[%clk 0:02:44]} 12. d4 {[%clk 0:02:37]}  cxd4 {[%clk 0:02:44]} 13. Nxd4 {[%clk 0:02:35]}  Qc7 {[%clk 0:02:38]} 14. b3 {[%clk 0:02:34]}  Nc6 {[%clk 0:02:17]} 15. Qd2 {[%clk 0:02:21]}  Bd7 {[%clk 0:01:57]} 16. Nd5 {[%clk 0:02:16]}  Nxd5 {[%clk 0:01:54]} 17. exd5 {[%clk 0:02:08]}  Nxd4 {[%clk 0:01:53]} 18. Bxd4 {[%clk 0:02:06]}  Bxd4 {[%clk 0:01:51]} 19. Qxd4 {[%clk 0:02:07]}  b5 {[%clk 0:01:35]} 20. cxb5 {[%clk 0:02:01]}  axb5 {[%clk 0:01:35]} 21. a5 {[%clk 0:01:58]}  Qc5 {[%clk 0:01:14]} 22. Qe4 {[%clk 0:01:44]}  Rfe8 {[%clk 0:01:07]} 23. b4 {[%clk 0:01:38]}  Qa7 {[%clk 0:01:02]} 24. Rfc1 {[%clk 0:01:18]}  Bf5 {[%clk 0:01:01]} 25. Qe2 {[%clk 0:01:08]}  Rec8 {[%clk 0:00:48]} 26. Rxc8+ {[%clk 0:01:06]}  Rxc8 {[%clk 0:00:47]} 27. Qxb5 {[%clk 0:01:03]}  Qd4 {[%clk 0:00:47]} 28. Qa4 {[%clk 0:00:53]}  Rc2 {[%clk 0:00:45]} 29. Rf1 {[%clk 0:00:40]}  Bd3 {[%clk 0:00:44]} 30. a6 {[%clk 0:00:33]}  Rb2 {[%clk 0:00:33]} 31. a7 {[%clk 0:00:32]}  Bxf1 {[%clk 0:00:33]} 32. a8=Q+ {[%clk 0:00:32]}  Kg7 {[%clk 0:00:33]} 33. Q8a7 {[%clk 0:00:26]}  Qd2 {[%clk 0:00:06]} 34. Qe3 {[%clk 0:00:21]}  Qxe3 {[%clk 0:00:03]} 35. fxe3 {[%clk 0:00:19]}  Bxg2 {[%clk 0:00:04]} 36. Qa1 {[%clk 0:00:18]}  Bxd5 {[%clk 0:00:02]} 37. Qxb2+ {[%clk 0:00:19]}  f6 {[%clk 0:00:03]} 38. b5 {[%clk 0:00:19]}  Kf7 {[%clk 0:00:03]} 39. b6 {[%clk 0:00:20]}  Bb7 {[%clk 0:00:04]} 40. Qc3 {[%clk 0:00:18]}  e5 {[%clk 0:00:02]} 41. Qc7+ {[%clk 0:00:18]} 1-0


[Site "https://www.chess.com"]

[Event "Titled Tuesday Blitz February 14 Early 2023"]
[White "Kanyamarala, Tarun"]
[Black "Cramling Bellon, Anna"]
[WhiteFideId "45004714"]
[BlackFideId "32009232"]
[WhiteElo "2342"]
[BlackElo "2043"]
[Result "1-0"]
[Round "04"]
[TimeControl "180+2"]
[Date "2023.02.15"]
[WhiteClock "0:00:08"]
[BlackClock "0:00:03"]

1. d4 {[%clk 0:02:54]}  Nf6 {[%clk 0:02:59]} 2. c4 {[%clk 0:02:54]}  e6 {[%clk 0:02:58]} 3. Nc3 {[%clk 0:02:53]}  d5 {[%clk 0:02:59]} 4. cxd5 {[%clk 0:02:51]}  exd5 {[%clk 0:03:00]} 5. Bg5 {[%clk 0:02:51]}  c6 {[%clk 0:02:55]} 6. e3 {[%clk 0:02:47]}  Be7 {[%clk 0:02:54]} 7. Bd3 {[%clk 0:02:40]}  O-O {[%clk 0:02:48]} 8. h3 {[%clk 0:02:29]}  h6 {[%clk 0:02:46]} 9. Bf4 {[%clk 0:02:29]}  Be6 {[%clk 0:02:45]} 10. Nf3 {[%clk 0:02:26]}  Nbd7 {[%clk 0:02:45]} 11. O-O {[%clk 0:02:25]}  Rc8 {[%clk 0:02:46]} 12. Rc1 {[%clk 0:02:22]}  c5 {[%clk 0:02:42]} 13. dxc5 {[%clk 0:02:22]}  Nxc5 {[%clk 0:02:43]} 14. Bb1 {[%clk 0:02:20]}  Nce4 {[%clk 0:02:41]} 15. Ne2 {[%clk 0:02:18]}  Qa5 {[%clk 0:02:22]} 16. Ned4 {[%clk 0:01:55]}  Rxc1 {[%clk 0:02:19]} 17. Qxc1 {[%clk 0:01:55]}  Rc8 {[%clk 0:02:20]} 18. Qd1 {[%clk 0:01:55]}  Qb4 {[%clk 0:02:04]} 19. Qe2 {[%clk 0:01:41]}  Qc4 {[%clk 0:01:30]} 20. Qd1 {[%clk 0:01:31]}  Qb4 {[%clk 0:01:08]} 21. Nb3 {[%clk 0:01:26]}  a5 {[%clk 0:01:03]} 22. Be5 {[%clk 0:01:18]}  a4 {[%clk 0:01:02]} 23. Nbd4 {[%clk 0:01:18]}  Nd7 {[%clk 0:00:47]} 24. a3 {[%clk 0:01:03]}  Qxb2 {[%clk 0:00:41]} 25. Nc6 {[%clk 0:01:00]}  Qxa3 {[%clk 0:00:33]} 26. Bb2 {[%clk 0:00:39]}  Qd6 {[%clk 0:00:30]} 27. Nxe7+ {[%clk 0:00:36]}  Qxe7 {[%clk 0:00:30]} 28. Qxa4 {[%clk 0:00:36]}  Ndc5 {[%clk 0:00:28]} 29. Qd4 {[%clk 0:00:34]}  Qf6 {[%clk 0:00:18]} 30. Ne5 {[%clk 0:00:32]}  Nb3 {[%clk 0:00:15]} 31. Qb4 {[%clk 0:00:26]}  Nbd2 {[%clk 0:00:12]} 32. Bxe4 {[%clk 0:00:14]}  Nxe4 {[%clk 0:00:10]} 33. Qxb7 {[%clk 0:00:12]}  Qf5 {[%clk 0:00:06]} 34. Nf3 {[%clk 0:00:10]}  Ng5 {[%clk 0:00:03]} 35. Nxg5 {[%clk 0:00:09]}  hxg5 {[%clk 0:00:03]} 36. Kh2 {[%clk 0:00:09]}  Qe5+ {[%clk 0:00:03]} 37. Bxe5 {[%clk 0:00:08]}  Re8 {[%clk 0:00:03]} 38. Bd6 {[%clk 0:00:08]} 1-0


[Site "https://www.chess.com"]

[Event "Titled Tuesday Blitz February 14 Early 2023"]
[White "Grycel, Kamil"]
[Black "Zampronha, Wladimir Camilo"]
[WhiteFideId "1115499"]
[BlackFideId "2103087"]
[WhiteElo "2315"]
[BlackElo "2176"]
[Result "1/2-1/2"]
[Round "04"]
[TimeControl "180+2"]
[Date "2023.02.15"]
[WhiteClock "0:00:05"]
[BlackClock "0:00:03"]

1. b3 {[%clk 0:03:00]}  e5 {[%clk 0:02:59]} 2. Bb2 {[%clk 0:03:00]}  Nc6 {[%clk 0:02:59]} 3. Nf3 {[%clk 0:03:01]}  d6 {[%clk 0:02:58]} 4. d4 {[%clk 0:03:00]}  e4 {[%clk 0:02:51]} 5. d5 {[%clk 0:03:00]}  exf3 {[%clk 0:02:49]} 6. dxc6 {[%clk 0:03:00]}  bxc6 {[%clk 0:02:46]} 7. exf3 {[%clk 0:02:59]}  Nf6 {[%clk 0:02:47]} 8. Qe2+ {[%clk 0:02:58]}  Be7 {[%clk 0:02:39]} 9. Bxf6 {[%clk 0:02:55]}  gxf6 {[%clk 0:02:40]} 10. g3 {[%clk 0:02:50]}  O-O {[%clk 0:02:39]} 11. Bg2 {[%clk 0:02:51]}  Bf5 {[%clk 0:02:35]} 12. O-O {[%clk 0:02:48]}  d5 {[%clk 0:02:33]} 13. Nc3 {[%clk 0:02:41]}  Bb4 {[%clk 0:02:29]} 14. Na4 {[%clk 0:02:39]}  Re8 {[%clk 0:02:15]} 15. Qd1 {[%clk 0:02:32]}  Bd6 {[%clk 0:01:59]} 16. f4 {[%clk 0:02:30]}  Qe7 {[%clk 0:01:46]} 17. c4 {[%clk 0:02:26]}  Be4 {[%clk 0:01:33]} 18. Re1 {[%clk 0:02:20]}  Qd7 {[%clk 0:01:31]} 19. Bxe4 {[%clk 0:02:16]}  Rxe4 {[%clk 0:01:22]} 20. Rxe4 {[%clk 0:02:16]}  dxe4 {[%clk 0:01:23]} 21. c5 {[%clk 0:02:16]}  e3 {[%clk 0:01:17]} 22. cxd6 {[%clk 0:02:12]}  exf2+ {[%clk 0:01:17]} 23. Kxf2 {[%clk 0:02:12]}  cxd6 {[%clk 0:01:17]} 24. Qd4 {[%clk 0:02:07]}  Re8 {[%clk 0:01:10]} 25. Re1 {[%clk 0:02:05]}  Rxe1 {[%clk 0:01:09]} 26. Kxe1 {[%clk 0:02:05]}  Qh3 {[%clk 0:01:07]} 27. Qf2 {[%clk 0:02:02]}  Qf5 {[%clk 0:01:05]} 28. Qe2 {[%clk 0:01:59]}  Kg7 {[%clk 0:01:01]} 29. Kf2 {[%clk 0:01:58]}  d5 {[%clk 0:00:59]} 30. Nc5 {[%clk 0:01:50]}  h5 {[%clk 0:00:57]} 31. Qd3 {[%clk 0:01:13]}  Qh3 {[%clk 0:00:56]} 32. Kg1 {[%clk 0:01:11]}  h4 {[%clk 0:00:56]} 33. Qf3 {[%clk 0:01:11]}  Kf8 {[%clk 0:00:46]} 34. f5 {[%clk 0:01:08]}  hxg3 {[%clk 0:00:45]} 35. hxg3 {[%clk 0:01:08]}  Qh6 {[%clk 0:00:44]} 36. Qf4 {[%clk 0:01:07]}  Qh5 {[%clk 0:00:43]} 37. g4 {[%clk 0:00:28]}  Qh4 {[%clk 0:00:43]} 38. Nd7+ {[%clk 0:00:23]}  Ke7 {[%clk 0:00:41]} 39. Nb8 {[%clk 0:00:20]}  Qe1+ {[%clk 0:00:42]} 40. Kg2 {[%clk 0:00:20]}  Qe2+ {[%clk 0:00:40]} 41. Kh3 {[%clk 0:00:20]}  Qd3+ {[%clk 0:00:37]} 42. Kh4 {[%clk 0:00:20]}  Qc2 {[%clk 0:00:26]} 43. Qg3 {[%clk 0:00:17]}  Qc1 {[%clk 0:00:20]} 44. Kh3 {[%clk 0:00:12]}  Qh6+ {[%clk 0:00:16]} 45. Kg2 {[%clk 0:00:13]}  Qd2+ {[%clk 0:00:15]} 46. Qf2 {[%clk 0:00:13]}  Qc1 {[%clk 0:00:15]} 47. Na6 {[%clk 0:00:12]}  Qf4 {[%clk 0:00:11]} 48. Qg3 {[%clk 0:00:11]}  Qd2+ {[%clk 0:00:09]} 49. Kh3 {[%clk 0:00:12]}  Qxa2 {[%clk 0:00:08]} 50. Nc5 {[%clk 0:00:08]}  Qb1 {[%clk 0:00:07]} 51. Qe3+ {[%clk 0:00:05]}  Kf8 {[%clk 0:00:06]} 52. Qh6+ {[%clk 0:00:05]}  Ke7 {[%clk 0:00:06]} 53. Qe3+ {[%clk 0:00:05]}  Kf8 {[%clk 0:00:06]} 54. Kg3 {[%clk 0:00:05]}  Qc2 {[%clk 0:00:06]} 55. Nd7+ {[%clk 0:00:04]}  Kg7 {[%clk 0:00:05]} 56. Nc5 {[%clk 0:00:03]}  Qb1 {[%clk 0:00:04]} 57. Nd3 {[%clk 0:00:03]}  Qc2 {[%clk 0:00:04]} 58. Nf4 {[%clk 0:00:04]}  Qd1 {[%clk 0:00:04]} 59. Nh5+ {[%clk 0:00:04]}  Kf8 {[%clk 0:00:03]} 60. Qc5+ {[%clk 0:00:04]}  Ke8 {[%clk 0:00:04]} 61. Qxc6+ {[%clk 0:00:05]}  Ke7 {[%clk 0:00:04]} 62. Qc7+ {[%clk 0:00:05]}  Ke8 {[%clk 0:00:05]} 63. Qc8+ {[%clk 0:00:05]}  Ke7 {[%clk 0:00:05]} 64. Qc7+ {[%clk 0:00:05]}  Kf8 {[%clk 0:00:05]} 65. Qd6+ {[%clk 0:00:05]}  Kg8 {[%clk 0:00:04]} 66. Nxf6+ {[%clk 0:00:05]}  Kg7 {[%clk 0:00:05]} 67. Nh5+ {[%clk 0:00:05]}  Kg8 {[%clk 0:00:04]} 68. Qd8+ {[%clk 0:00:06]}  Kh7 {[%clk 0:00:04]} 69. Nf6+ {[%clk 0:00:04]}  Kg7 {[%clk 0:00:03]} 70. Nh5+ {[%clk 0:00:05]}  Kh7 {[%clk 0:00:04]} 71. Qg5 {[%clk 0:00:04]}  Qg1+ {[%clk 0:00:03]} 72. Kf3 {[%clk 0:00:03]}  Qd1+ {[%clk 0:00:03]} 73. Kg2 {[%clk 0:00:03]}  Qe2+ {[%clk 0:00:02]} 74. Kh3 {[%clk 0:00:04]}  Qf1+ {[%clk 0:00:02]} 75. Kh2 {[%clk 0:00:04]}  Qf2+ {[%clk 0:00:03]} 76. Kh3 {[%clk 0:00:04]}  Qf1+ {[%clk 0:00:03]} 77. Kh4 {[%clk 0:00:05]}  Qf2+ {[%clk 0:00:03]} 78. Kh3 {[%clk 0:00:05]}  Qf1+ {[%clk 0:00:03]} 1/2-1/2


[Site "https://www.chess.com"]

[Event "Titled Tuesday Blitz February 14 Early 2023"]
[White "Thiel, Thomas"]
[Black "Taichman, Ori"]
[WhiteFideId "4615964"]
[BlackFideId "2804069"]
[WhiteElo "2234"]
[BlackElo "2299"]
[Result "0-1"]
[Round "04"]
[TimeControl "180+2"]
[Date "2023.02.15"]
[WhiteClock "0:00:43"]
[BlackClock "0:01:07"]

1. e4 {[%clk 0:03:00]}  c5 {[%clk 0:02:59]} 2. Nc3 {[%clk 0:02:59]}  Nc6 {[%clk 0:02:58]} 3. Bb5 {[%clk 0:02:57]}  Nd4 {[%clk 0:02:58]} 4. Bc4 {[%clk 0:02:57]}  g6 {[%clk 0:02:54]} 5. Nf3 {[%clk 0:02:56]}  Bg7 {[%clk 0:02:54]} 6. Nxd4 {[%clk 0:02:56]}  cxd4 {[%clk 0:02:54]} 7. Qf3 {[%clk 0:02:55]}  Nh6 {[%clk 0:02:54]} 8. Ne2 {[%clk 0:02:54]}  O-O {[%clk 0:02:52]} 9. d3 {[%clk 0:02:54]}  Ng4 {[%clk 0:02:52]} 10. Bb3 {[%clk 0:02:52]}  d6 {[%clk 0:02:50]} 11. O-O {[%clk 0:02:50]}  a5 {[%clk 0:02:38]} 12. a4 {[%clk 0:02:48]}  Ne5 {[%clk 0:02:31]} 13. Qg3 {[%clk 0:02:47]}  Nd7 {[%clk 0:02:31]} 14. Qh4 {[%clk 0:02:45]}  Nc5 {[%clk 0:02:31]} 15. Bg5 {[%clk 0:02:43]}  Nxb3 {[%clk 0:02:09]} 16. Bxe7 {[%clk 0:02:40]}  Qb6 {[%clk 0:02:08]} 17. Bxf8 {[%clk 0:02:22]}  Nxa1 {[%clk 0:01:56]} 18. Bxg7 {[%clk 0:02:20]}  Kxg7 {[%clk 0:01:55]} 19. Rxa1 {[%clk 0:02:16]}  Qxb2 {[%clk 0:01:54]} 20. Rf1 {[%clk 0:02:15]}  Qxc2 {[%clk 0:01:52]} 21. Nxd4 {[%clk 0:02:05]}  Qxd3 {[%clk 0:01:52]} 22. Nb5 {[%clk 0:01:58]}  Bd7 {[%clk 0:01:48]} 23. Nc7 {[%clk 0:01:54]}  Rc8 {[%clk 0:01:36]} 24. Nd5 {[%clk 0:01:54]}  Qd4 {[%clk 0:01:34]} 25. Qe7 {[%clk 0:01:45]}  Bxa4 {[%clk 0:01:14]} 26. Qxb7 {[%clk 0:01:18]}  Rc2 {[%clk 0:01:11]} 27. Qe7 {[%clk 0:00:58]}  Bb5 {[%clk 0:01:10]} 28. Nf4 {[%clk 0:00:45]}  Qxf2+ {[%clk 0:01:08]} 29. Rxf2 {[%clk 0:00:43]}  Rc1+ {[%clk 0:01:07]} 0-1


[Site "https://www.chess.com"]

[Event "Titled Tuesday Blitz February 14 Early 2023"]
[White "Balabayeva, Xeniya"]
[Black "Broca Jimenez, Fernando"]
[WhiteFideId "13719688"]
[BlackFideId "5104742"]
[WhiteElo "2191"]
[BlackElo "2075"]
[Result "1-0"]
[Round "04"]
[TimeControl "180+2"]
[Date "2023.02.15"]
[WhiteClock "0:00:14"]
[BlackClock "0:00:02"]

1. e4 {[%clk 0:03:00]}  c5 {[%clk 0:02:57]} 2. Nf3 {[%clk 0:03:00]}  g6 {[%clk 0:02:57]} 3. g3 {[%clk 0:02:51]}  Bg7 {[%clk 0:02:55]} 4. Bg2 {[%clk 0:02:49]}  Nc6 {[%clk 0:02:54]} 5. c3 {[%clk 0:02:49]}  Nf6 {[%clk 0:02:43]} 6. Qe2 {[%clk 0:02:45]}  d6 {[%clk 0:02:36]} 7. O-O {[%clk 0:02:44]}  O-O {[%clk 0:02:35]} 8. d4 {[%clk 0:02:43]}  Bg4 {[%clk 0:02:17]} 9. Rd1 {[%clk 0:02:38]}  cxd4 {[%clk 0:01:57]} 10. cxd4 {[%clk 0:02:37]}  Nd7 {[%clk 0:01:57]} 11. Be3 {[%clk 0:02:33]}  Qa5 {[%clk 0:01:41]} 12. Nc3 {[%clk 0:02:25]}  Rac8 {[%clk 0:01:31]} 13. a3 {[%clk 0:02:20]}  a6 {[%clk 0:01:18]} 14. Rac1 {[%clk 0:02:12]}  e6 {[%clk 0:01:17]} 15. h3 {[%clk 0:02:01]}  Bxf3 {[%clk 0:01:16]} 16. Bxf3 {[%clk 0:01:59]}  Rfd8 {[%clk 0:01:16]} 17. d5 {[%clk 0:01:46]}  exd5 {[%clk 0:01:07]} 18. Nxd5 {[%clk 0:01:45]}  Qb5 {[%clk 0:00:40]} 19. Qxb5 {[%clk 0:01:34]}  axb5 {[%clk 0:00:40]} 20. Bg4 {[%clk 0:01:33]}  Ra8 {[%clk 0:00:26]} 21. Rd2 {[%clk 0:01:23]}  Nde5 {[%clk 0:00:25]} 22. Be2 {[%clk 0:01:19]}  Kf8 {[%clk 0:00:22]} 23. f4 {[%clk 0:01:15]}  Nd7 {[%clk 0:00:18]} 24. Bxb5 {[%clk 0:01:14]}  Rdc8 {[%clk 0:00:14]} 25. Rdc2 {[%clk 0:01:10]}  Ra5 {[%clk 0:00:07]} 26. a4 {[%clk 0:01:02]}  Nc5 {[%clk 0:00:05]} 27. Bxc6 {[%clk 0:00:20]}  Rxc6 {[%clk 0:00:03]} 28. b4 {[%clk 0:00:19]}  Rxa4 {[%clk 0:00:01]} 29. bxc5 {[%clk 0:00:20]}  dxc5 {[%clk 0:00:01]} 30. Bxc5+ {[%clk 0:00:19]}  Rxc5 {[%clk 0:00:01]} 31. Rxc5 {[%clk 0:00:19]}  Bd4+ {[%clk 0:00:02]} 32. Kg2 {[%clk 0:00:19]}  Bxc5 {[%clk 0:00:02]} 33. Rxc5 {[%clk 0:00:19]}  Rxe4 {[%clk 0:00:03]} 34. Kf3 {[%clk 0:00:19]}  Rb4 {[%clk 0:00:04]} 35. Rc7 {[%clk 0:00:15]}  Rb2 {[%clk 0:00:03]} 36. Nf6 {[%clk 0:00:14]}  Rb3+ {[%clk 0:00:02]} 37. Kg4 {[%clk 0:00:14]}  h5+ {[%clk 0:00:02]} 38. Kh4 {[%clk 0:00:15]}  Rb5 {[%clk 0:00:02]} 39. g4 {[%clk 0:00:14]} 1-0


[Site "https://www.chess.com"]

[Event "Titled Tuesday Blitz February 14 Early 2023"]
[White "Torres Dominguez, David"]
[Black "Goncalves, Davi Sulzbacher"]
[WhiteFideId "2220857"]
[BlackFideId "2154510"]
[WhiteElo "1994"]
[BlackElo "2282"]
[Result "1-0"]
[Round "04"]
[TimeControl "180+2"]
[Date "2023.02.15"]
[WhiteClock "0:00:30"]
[BlackClock "0:00:05"]

1. e4 {[%clk 0:02:56]}  c5 {[%clk 0:02:59]} 2. Nc3 {[%clk 0:02:56]}  e6 {[%clk 0:02:59]} 3. f4 {[%clk 0:02:52]}  d5 {[%clk 0:02:59]} 4. Nf3 {[%clk 0:02:51]}  Nf6 {[%clk 0:02:59]} 5. Bb5+ {[%clk 0:02:48]}  Bd7 {[%clk 0:02:58]} 6. Bxd7+ {[%clk 0:02:46]}  Qxd7 {[%clk 0:02:49]} 7. Ne5 {[%clk 0:02:46]}  Qc7 {[%clk 0:02:46]} 8. d3 {[%clk 0:02:44]}  Nc6 {[%clk 0:02:38]} 9. Nxc6 {[%clk 0:02:39]}  Qxc6 {[%clk 0:02:38]} 10. Qf3 {[%clk 0:02:34]}  b5 {[%clk 0:02:07]} 11. exd5 {[%clk 0:02:29]}  Nxd5 {[%clk 0:01:56]} 12. O-O {[%clk 0:02:20]}  Be7 {[%clk 0:01:55]} 13. Re1 {[%clk 0:02:15]}  Rc8 {[%clk 0:01:49]} 14. Nxd5 {[%clk 0:02:10]}  Qxd5 {[%clk 0:01:47]} 15. Qxd5 {[%clk 0:02:09]}  exd5 {[%clk 0:01:48]} 16. Re5 {[%clk 0:02:09]}  Kd7 {[%clk 0:01:17]} 17. Rxd5+ {[%clk 0:02:05]}  Bd6 {[%clk 0:01:18]} 18. c4 {[%clk 0:01:55]}  Rhe8 {[%clk 0:01:11]} 19. Kf2 {[%clk 0:01:55]}  Kc6 {[%clk 0:01:01]} 20. Bd2 {[%clk 0:01:52]}  bxc4 {[%clk 0:00:59]} 21. dxc4 {[%clk 0:01:51]}  Re4 {[%clk 0:00:59]} 22. b3 {[%clk 0:01:45]}  Rce8 {[%clk 0:00:59]} 23. Re1 {[%clk 0:01:38]}  Rxe1 {[%clk 0:00:55]} 24. Bxe1 {[%clk 0:01:39]}  Bxf4 {[%clk 0:00:56]} 25. Rh5 {[%clk 0:01:28]}  h6 {[%clk 0:00:49]} 26. Kf1 {[%clk 0:01:27]}  Bg5 {[%clk 0:00:45]} 27. Rh3 {[%clk 0:01:25]}  f5 {[%clk 0:00:43]} 28. Rf3 {[%clk 0:01:21]}  g6 {[%clk 0:00:43]} 29. h4 {[%clk 0:01:15]}  Bf6 {[%clk 0:00:40]} 30. h5 {[%clk 0:01:14]}  gxh5 {[%clk 0:00:19]} 31. Rxf5 {[%clk 0:01:14]}  Bg5 {[%clk 0:00:19]} 32. Bf2 {[%clk 0:01:10]}  Be3 {[%clk 0:00:19]} 33. Bxe3 {[%clk 0:01:04]}  Rxe3 {[%clk 0:00:20]} 34. Rxh5 {[%clk 0:01:05]}  Re6 {[%clk 0:00:21]} 35. Kf2 {[%clk 0:01:00]}  Rf6+ {[%clk 0:00:19]} 36. Kg3 {[%clk 0:00:57]}  Rg6+ {[%clk 0:00:19]} 37. Kf3 {[%clk 0:00:50]}  Rf6+ {[%clk 0:00:18]} 38. Kg3 {[%clk 0:00:49]}  Rg6+ {[%clk 0:00:19]} 39. Kh3 {[%clk 0:00:50]}  Rd6 {[%clk 0:00:17]} 40. g4 {[%clk 0:00:44]}  Kb6 {[%clk 0:00:13]} 41. Kg3 {[%clk 0:00:44]}  Rd2 {[%clk 0:00:10]} 42. Rxh6+ {[%clk 0:00:42]}  Ka5 {[%clk 0:00:11]} 43. Rc6 {[%clk 0:00:38]}  Kb4 {[%clk 0:00:09]} 44. Ra6 {[%clk 0:00:33]}  Rd7 {[%clk 0:00:06]} 45. g5 {[%clk 0:00:33]}  Kc3 {[%clk 0:00:06]} 46. g6 {[%clk 0:00:32]}  Kd4 {[%clk 0:00:05]} 47. Kf4 {[%clk 0:00:31]}  Kc3 {[%clk 0:00:01]} 48. Kf5 {[%clk 0:00:31]}  Kd4 {[%clk 0:00:01]} 49. Kf6 {[%clk 0:00:31]}  Kc3 {[%clk 0:00:02]} 50. g7 {[%clk 0:00:31]}  Rd8 {[%clk 0:00:03]} 51. Kf7 {[%clk 0:00:31]}  Rd1 {[%clk 0:00:04]} 52. g8=Q {[%clk 0:00:30]}  Rf1+ {[%clk 0:00:05]} 1-0


[Site "https://www.chess.com"]

[Event "Titled Tuesday Blitz February 14 Early 2023"]
[White "Mujumdar, Sameer"]
[Black "Baruch, Liam"]
[WhiteFideId "2029707"]
[BlackFideId "14322064"]
[WhiteElo "1992"]
[BlackElo "1718"]
[Result "1-0"]
[Round "04"]
[TimeControl "180+2"]
[Date "2023.02.15"]
[WhiteClock "0:00:33"]
[BlackClock "0:00:15"]

1. e4 {[%clk 0:03:00]}  e5 {[%clk 0:03:00]} 2. Nf3 {[%clk 0:03:00]}  Nc6 {[%clk 0:03:00]} 3. Bb5 {[%clk 0:03:01]}  a6 {[%clk 0:03:00]} 4. Ba4 {[%clk 0:03:01]}  Nf6 {[%clk 0:03:00]} 5. O-O {[%clk 0:03:02]}  b5 {[%clk 0:03:01]} 6. Bb3 {[%clk 0:03:02]}  Bc5 {[%clk 0:03:01]} 7. d3 {[%clk 0:02:58]}  d6 {[%clk 0:03:01]} 8. Be3 {[%clk 0:02:56]}  Bxe3 {[%clk 0:02:58]} 9. fxe3 {[%clk 0:02:57]}  Na5 {[%clk 0:02:56]} 10. Nc3 {[%clk 0:02:55]}  Nxb3 {[%clk 0:02:55]} 11. axb3 {[%clk 0:02:56]}  O-O {[%clk 0:02:54]} 12. Qe1 {[%clk 0:02:57]}  Bd7 {[%clk 0:02:40]} 13. h3 {[%clk 0:02:51]}  Ne8 {[%clk 0:02:33]} 14. g4 {[%clk 0:02:45]}  g6 {[%clk 0:02:31]} 15. Qg3 {[%clk 0:02:40]}  Ng7 {[%clk 0:02:29]} 16. Rf2 {[%clk 0:02:23]}  Kh8 {[%clk 0:02:27]} 17. Raf1 {[%clk 0:02:16]}  f5 {[%clk 0:02:22]} 18. exf5 {[%clk 0:02:10]}  gxf5 {[%clk 0:02:23]} 19. g5 {[%clk 0:02:00]}  f4 {[%clk 0:02:19]} 20. exf4 {[%clk 0:01:56]}  exf4 {[%clk 0:02:18]} 21. Qh2 {[%clk 0:01:49]}  Ne6 {[%clk 0:01:52]} 22. Ne4 {[%clk 0:01:43]}  Bc6 {[%clk 0:01:43]} 23. h4 {[%clk 0:01:17]}  Bxe4 {[%clk 0:01:40]} 24. dxe4 {[%clk 0:01:18]}  Qd7 {[%clk 0:01:33]} 25. Qh3 {[%clk 0:01:14]}  Rad8 {[%clk 0:01:31]} 26. Rd2 {[%clk 0:01:10]}  Nc5 {[%clk 0:01:19]} 27. Qxd7 {[%clk 0:01:11]}  Nxd7 {[%clk 0:01:19]} 28. Nd4 {[%clk 0:01:09]}  Rde8 {[%clk 0:01:15]} 29. Re2 {[%clk 0:01:03]}  Nc5 {[%clk 0:01:15]} 30. Kg2 {[%clk 0:00:50]}  Rxe4 {[%clk 0:01:06]} 31. Rxe4 {[%clk 0:00:48]}  Nxe4 {[%clk 0:01:06]} 32. Ne6 {[%clk 0:00:49]}  Re8 {[%clk 0:00:58]} 33. Nxc7 {[%clk 0:00:49]}  Rc8 {[%clk 0:00:57]} 34. Rxf4 {[%clk 0:00:45]}  Rxc7 {[%clk 0:00:55]} 35. Rxe4 {[%clk 0:00:45]}  Rxc2+ {[%clk 0:00:56]} 36. Kg3 {[%clk 0:00:43]}  Rxb2 {[%clk 0:00:56]} 37. b4 {[%clk 0:00:43]}  Kg7 {[%clk 0:00:53]} 38. Rd4 {[%clk 0:00:43]}  Rb3+ {[%clk 0:00:49]} 39. Kg4 {[%clk 0:00:42]}  d5 {[%clk 0:00:49]} 40. h5 {[%clk 0:00:40]}  Rc3 {[%clk 0:00:47]} 41. Rxd5 {[%clk 0:00:40]}  Rc4+ {[%clk 0:00:47]} 42. Kf5 {[%clk 0:00:39]}  Rxb4 {[%clk 0:00:48]} 43. Rd7+ {[%clk 0:00:40]}  Kf8 {[%clk 0:00:45]} 44. Rxh7 {[%clk 0:00:39]}  a5 {[%clk 0:00:45]} 45. Ra7 {[%clk 0:00:40]}  a4 {[%clk 0:00:45]} 46. g6 {[%clk 0:00:40]}  Rb1 {[%clk 0:00:35]} 47. h6 {[%clk 0:00:39]}  Rf1+ {[%clk 0:00:36]} 48. Ke5 {[%clk 0:00:38]}  Re1+ {[%clk 0:00:35]} 49. Kd4 {[%clk 0:00:39]}  Rh1 {[%clk 0:00:18]} 50. g7+ {[%clk 0:00:35]}  Kg8 {[%clk 0:00:17]} 51. Ra8+ {[%clk 0:00:34]}  Kh7 {[%clk 0:00:15]} 52. Rh8+ {[%clk 0:00:33]}  Kg6 {[%clk 0:00:14]} 53. g8=Q+ {[%clk 0:00:33]}  Kh5 {[%clk 0:00:15]} 54. Qd5+ {[%clk 0:00:33]} 1-0


[Site "https://www.chess.com"]

[Event "Titled Tuesday Blitz February 14 Early 2023"]
[White "Abdilkhair, Abilmansur"]
[Black "Schut, Han"]
[WhiteFideId "13716417"]
[BlackFideId "1005561"]
[WhiteElo "2268"]
[BlackElo "2101"]
[Result "1-0"]
[Round "04"]
[TimeControl "180+2"]
[Date "2023.02.15"]
[WhiteClock "0:02:27"]
[BlackClock "0:02:04"]

1. d4 {[%clk 0:02:56]}  Nf6 {[%clk 0:02:59]} 2. c4 {[%clk 0:02:56]}  g6 {[%clk 0:03:00]} 3. Nc3 {[%clk 0:02:57]}  d5 {[%clk 0:03:00]} 4. cxd5 {[%clk 0:02:57]}  Nxd5 {[%clk 0:03:01]} 5. e4 {[%clk 0:02:57]}  Nxc3 {[%clk 0:03:01]} 6. bxc3 {[%clk 0:02:58]}  Bg7 {[%clk 0:03:02]} 7. Nf3 {[%clk 0:02:59]}  c5 {[%clk 0:03:02]} 8. Rb1 {[%clk 0:02:58]}  Nc6 {[%clk 0:02:56]} 9. d5 {[%clk 0:02:58]}  Ne5 {[%clk 0:02:49]} 10. Nxe5 {[%clk 0:02:58]}  Bxe5 {[%clk 0:02:50]} 11. Qd2 {[%clk 0:02:58]}  O-O {[%clk 0:02:41]} 12. f4 {[%clk 0:02:58]}  Bc7 {[%clk 0:02:42]} 13. Be2 {[%clk 0:02:57]}  e6 {[%clk 0:02:42]} 14. O-O {[%clk 0:02:57]}  exd5 {[%clk 0:02:42]} 15. exd5 {[%clk 0:02:58]}  Bf5 {[%clk 0:02:36]} 16. Rxb7 {[%clk 0:02:56]}  Bb6 {[%clk 0:02:36]} 17. d6 {[%clk 0:02:33]}  c4+ {[%clk 0:02:22]} 18. Kh1 {[%clk 0:02:31]}  Be4 {[%clk 0:02:15]} 19. Re7 {[%clk 0:02:28]}  Bc5 {[%clk 0:02:04]} 20. Rxe4 {[%clk 0:02:27]} 1-0


[Site "https://www.chess.com"]